bitfinex-derivatives/quotes_ETHF0:USTF0_20250702
["timestamp","ask_amount","ask_price","bid_price","bid_amount"]
[1751419551231,0.83491,2395.2,2394.9,1.7501]
[1751419551825,1.6651,2395.5,2394.9,1.7501]
[1751419552243,0.83481,2395.4,2395.0,2.60313]
[1751419552737,1.6651,2395.5,2395.0,1.7682]
[1751419552940,0.83492,2395.1,2394.9,1.7501]
[1751419553142,0.835,2394.9,2394.6,5.8940632]
[1751419553337,2.08704,2395.4,2394.6,1.7682]
[1751419553538,0.83493,2395.1,2394.7,0.83505]
[1751419553733,0.83496,2395.0,2394.6,2.60327]
[1751419554236,0.835,2394.9,2394.6,1.7682]
[1751419554639,1.8027,2395.3,2394.6,2.60326]
[1751419554839,0.83502,2394.9,2394.6,1.7682]
[1751419555041,0.83496,2395.0,2394.6,2.60327]
[1751419555236,0.83506,2394.7,2394.6,1.7682]
[1751419555443,2.08721,2395.2,2394.5,1.7547]
[1751419555639,0.83508,2394.7,2394.5,1.7547]
[1751419556042,0.83502,2394.9,2394.5,1.7547]
[1751419556342,0.83502,2394.9,2394.5,4.23602]
[1751419556543,0.83507,2394.7,2394.5,3.4009]
[1751419556733,1.7371,2395.1,2394.5,7.5267632]
[1751419556937,1.7371,2395.1,2394.5,5.8805632]
[1751419557235,1.7371,2395.1,2394.5,1.7547]
[1751419557437,0.83508,2394.7,2394.5,3.4036]
[1751419558045,1.7371,2395.1,2394.5,3.4036]
[1751419558248,1.7371,2395.1,2394.5,4.23873]
[1751419558434,1.7371,2395.1,2394.5,8.3645832]
[1751419558639,3.82445,2395.1,2394.5,1.7547]
[1751419558838,5.51465,2395.1,2394.5,1.7547]
[1751419559039,20.13865,2395.1,2394.4,5.8188632]
[1751419559344,0.83513,2394.5,2394.4,5.8188632]
[1751419559842,18.0513,2395.1,2394.3,4.1258632]
[1751419560038,0.83523,2394.2,2394.1,4.1258632]
[1751419560238,0.83523,2394.2,2394.0,4.1258632]
[1751419560435,0.83527,2394.1,2394.0,4.1258632]
[1751419560639,0.83525,2394.2,2394.0,4.1258632]
[1751419560839,0.83525,2394.2,2394.1,4.14535936]
[1751419561444,0.83518,2394.4,2394.0,6.61149848]
[1751419561640,0.83518,2394.4,2394.3,4.14629123]
[1751419562547,0.83522,2394.3,2394.1,5.92219123]
[1751419563246,0.83514,2394.5,2394.2,0.83523]
[1751419563443,0.83514,2394.5,2394.3,1.6527]
[1751419563950,0.83516,2394.4,2394.3,1.6527]
[1751419565050,0.8352,2394.3,2394.2,4.14629123]
[1751419565551,0.83523,2394.2,2394.1,4.14629123]
[1751419566352,0.83547,2393.5,2393.4,8.25697491]
[1751419566550,19.9242,2394.1,2393.2,8.25697491]
[1751419566751,0.83553,2393.4,2393.2,9.92897491]
[1751419566947,0.83553,2393.4,2393.3,1.672]
[1751419567551,0.83546,2393.6,2393.3,1.672]
[1751419567751,3.5428,2394.1,2393.3,1.672]
[1751419567950,0.83546,2393.6,2393.3,1.672]
[1751419568355,2.08826,2394.0,2393.3,1.672]
[1751419568655,7.38643,2394.1,2393.3,1.672]
[1751419568856,62.20401,2394.3,2393.3,1.672]
[1751419569158,2.08808,2394.2,2393.4,6.15598155]
[1751419569360,0.83544,2393.6,2393.5,1.672]
[1751419569552,0.83542,2393.7,2393.5,1.672]
[1751419569958,0.83544,2393.6,2393.5,1.672]
[1751419570562,0.83551,2393.4,2393.0,10.79360491]
[1751419570761,0.83551,2393.4,2393.1,2.61111]
[1751419570962,2.08856,2393.7,2393.1,1.7755]
[1751419571260,0.83558,2393.2,2393.1,1.7755]
[1751419571758,0.83558,2393.2,2393.1,6.7755]
[1751419572061,0.83547,2393.6,2393.2,0.83557]
[1751419572256,1.7619,2393.8,2393.3,1.7755]
[1751419572455,0.83556,2393.3,2392.9,43.39486]
[1751419572655,0.83556,2393.3,2393.0,2.63405]
[1751419572854,14.628,2394.7,2393.1,2.08904]
[1751419573162,0.83534,2393.9,2393.6,0.83544]
[1751419573462,0.83524,2394.2,2393.9,0.83531]
[1751419573661,3.482,2394.5,2394.0,1.7984]
[1751419574061,0.83522,2394.3,2394.0,2.63369]
[1751419574264,3.482,2394.5,2394.0,1.7984]
[1751419574560,0.83524,2394.2,2394.0,1.7984]
[1751419574961,0.83527,2394.1,2393.7,4.26658]
[1751419575163,0.83531,2394.0,2393.8,1.7984]
[1751419575464,0.83529,2394.1,2393.8,1.7984]
[1751419575663,0.83529,2394.1,2393.8,2.63376]
[1751419576563,0.83525,2394.2,2393.9,0.83533]
[1751419576764,3.482,2394.5,2393.8,1.7984]
[1751419576765,0.83519,2394.4,2393.8,1.7984]
[1751419576959,1.7619,2394.8,2393.8,1.7984]
[1751419577159,0.83508,2394.7,2394.0,7.45624018]
[1751419577458,1.7205,2394.9,2394.1,7.09837466]
[1751419577661,14.629,2395.1,2394.2,40.8]
[1751419577864,0.83499,2394.9,2394.6,0.83507]
[1751419578167,0.83499,2394.9,2394.6,0.83509]
[1751419578364,0.83502,2394.8,2394.5,0.83511]
[1751419578660,0.83516,2394.4,2394.3,1.7652]
[1751419578869,0.83525,2394.2,2394.0,1.6662]
[1751419579068,0.83526,2394.1,2394.0,1.6662]
[1751419579364,0.83525,2394.2,2394.0,1.6662]
[1751419580166,3.5694,2394.6,2394.0,1.6662]
[1751419580464,0.83519,2394.4,2394.1,0.83524]
[1751419580662,2.08804,2394.3,2393.8,5.80381699]
[1751419580866,1.7138,2394.3,2393.8,5.80381699]
[1751419581062,1.7797,2394.5,2393.8,5.80381699]
[1751419581263,0.8353,2394.0,2393.9,7.47001699]
[1751419581464,0.83528,2394.1,2393.9,7.47001699]
[1751419581767,0.8353,2394.0,2393.9,1.6662]
[1751419582872,0.83536,2393.8,2393.7,5.80381699]
[1751419583362,0.83543,2393.6,2393.5,1.7536]
[1751419583570,0.83543,2393.6,2393.5,44.3696]
[1751419584471,0.83543,2393.6,2393.5,3.5696]
[1751419584666,1.7261,2394.2,2393.5,8.5696]
[1751419584869,0.8354,2393.7,2393.5,8.5696]
[1751419585170,0.83544,2393.6,2393.5,44.3696]
[1751419588565,2.08816,2394.1,2393.5,51.00888699]
[1751419588770,0.83541,2393.7,2393.5,50.17341699]
[1751419588968,0.83541,2393.7,2393.6,5.80381699]
[1751419589170,0.83541,2393.7,2393.6,7.52911699]
[1751419590468,0.83543,2393.6,2393.5,42.5536]
[1751419590866,0.83547,2393.5,2393.4,1.7039]
[1751419591067,0.8355,2393.4,2393.3,8.25697491]
[1751419591270,0.8355,2393.4,2393.3,49.05697491]
[1751419591571,0.8355,2393.4,2393.3,8.25697491]
[1751419591875,0.8356,2393.2,2393.0,11.75767491]
[1751419592173,0.8356,2393.2,2393.1,40.8]
[1751419592471,0.83561,2393.1,2393.0,5.2364]
[1751419593074,0.83561,2393.1,2393.0,46.0364]
[1751419593972,3.85713,2393.7,2393.0,46.0364]
[1751419594173,0.83555,2393.3,2393.2,5.82573344]
[1751419594877,0.83557,2393.2,2393.1,5.82573344]
[1751419596078,0.83561,2393.1,2393.0,5.82573344]
[1751419597066,0.83564,2393.0,2392.9,5.82573344]
[1751419597869,1.7508,2393.4,2392.9,5.82573344]
[1751419598069,0.83564,2393.0,2392.9,5.82573344]
[1751419598972,0.83563,2393.1,2392.9,6.66141344]
[1751419599276,0.83564,2393.0,2392.9,5.82573344]
[1751419599473,0.83552,2393.4,2393.2,0.83556]
[1751419599668,1.7786,2393.7,2393.2,4.71854278]
[1751419599871,0.8355,2393.5,2393.2,5.55409278]
[1751419600071,0.8355,2393.5,2393.3,1.6426]
[1751419600582,0.8355,2393.5,2393.3,2.47813]
[1751419601080,0.83551,2393.4,2393.3,1.6426]
[1751419604379,0.83557,2393.2,2393.1,7.56383344]
[1751419604978,2.08824,2394.0,2393.1,12.56383344]
[1751419605184,0.83547,2393.6,2393.3,0.83551]
[1751419605383,0.83547,2393.5,2393.4,1.7633]
[1751419606181,3.77764,2394.0,2393.4,1.7633]
[1751419606182,0.83546,2393.6,2393.4,2.5988]
[1751419606383,0.8354,2393.7,2393.5,0.83547]
[1751419606574,2.08811,2394.2,2393.6,1.8164]
[1751419606778,0.83535,2393.9,2393.7,0.83539]
[1751419607378,0.83528,2394.1,2393.9,0.83533]
[1751419607582,0.83528,2394.1,2393.9,5.55387278]
[1751419607881,0.83525,2394.2,2393.9,5.55387278]
[1751419608278,14.437,2394.6,2393.9,4.71854278]
[1751419608484,14.437,2394.6,2394.2,0.83521]
[1751419608675,14.437,2394.6,2393.9,4.71854278]
[1751419608880,16.2407,2394.6,2394.0,42.6164]
[1751419609082,16.2407,2394.6,2394.0,43.45168]
[1751419609386,0.83521,2394.3,2394.0,43.45168]
[1751419609785,0.83521,2394.3,2394.0,42.6164]
[1751419610188,0.83521,2394.3,2394.0,43.45168]
[1751419610388,0.83518,2394.4,2394.1,0.83525]
[1751419610589,16.2407,2394.6,2394.1,1.7035]
[1751419610782,16.2407,2394.6,2394.1,2.53874]
[1751419610983,0.83519,2394.4,2394.1,2.53874]
[1751419611179,14.437,2394.6,2394.1,1.7035]
[1751419611489,1.7094,2395.0,2394.4,0.83514]
[1751419611690,18.0544,2395.1,2394.6,0.83506]
[1751419611895,0.83498,2395.0,2394.3,5.48582]
[1751419612195,0.83496,2395.0,2394.8,0.83501]
[1751419612487,0.83493,2395.1,2394.9,0.83498]
[1751419612785,0.83486,2395.3,2395.0,0.83494]
[1751419613090,0.83486,2395.3,2395.0,0.83493]
[1751419613790,0.83482,2395.4,2395.1,0.83489]
[1751419614088,2.08664,2395.9,2394.9,5.51638568]
[1751419614089,0.83479,2395.5,2395.2,1.7258]
[1751419614486,0.83479,2395.5,2395.3,0.83484]
[1751419614887,2.08625,2396.3,2395.4,6.44434278]
[1751419615087,0.83468,2395.8,2395.5,0.83475]
[1751419615284,0.83468,2395.8,2395.6,2.50833]
[1751419615484,5.56135,2396.3,2395.6,2.50833]
[1751419615485,3.4751,2396.3,2395.6,2.50831]
[1751419615692,5.5614,2396.3,2395.6,1.6736]
[1751419615881,2.08639,2396.2,2395.5,40.8]
[1751419616086,5.35860661,2396.0,2395.2,5.82573344]
[1751419616293,5.35860661,2396.0,2395.1,5.82573344]
[1751419616294,0.83482,2395.4,2395.1,5.82573344]
[1751419616495,0.83482,2395.4,2395.1,46.62573344]
[1751419616687,0.83482,2395.4,2395.2,7.49933344]
[1751419616888,0.83482,2395.4,2395.3,1.6736]
[1751419617287,0.83484,2395.3,2395.2,5.82573344]
[1751419617493,0.83484,2395.3,2395.1,40.8]
[1751419617687,0.83483,2395.4,2395.2,1.6736]
[1751419617895,5.50079,2395.9,2395.2,1.6736]
[1751419617896,0.83484,2395.3,2395.2,1.6736]
[1751419618391,0.83483,2395.4,2395.2,1.6736]
[1751419618794,0.83484,2395.3,2395.2,1.6736]
[1751419619295,0.83482,2395.4,2395.2,2.50848]
[1751419619491,0.83482,2395.4,2395.2,1.6736]
[1751419620286,0.83482,2395.4,2395.2,2.50847]
[1751419620489,0.83484,2395.3,2395.2,1.6736]
[1751419621496,0.83479,2395.5,2395.3,0.83484]
[1751419621694,1.7263,2395.8,2395.2,1.6736]
[1751419621997,1.7453,2395.9,2395.4,0.83481]
[1751419621998,0.83476,2395.6,2395.4,0.83481]
[1751419622297,0.83476,2395.6,2395.4,2.58021]
[1751419622498,3.89248,2396.3,2395.4,1.7454]
[1751419622699,2.08633,2396.2,2395.5,5.32520101]
[1751419622999,0.83474,2395.6,2395.4,0.83479]
[1751419623295,0.83471,2395.7,2395.5,0.83477]
[1751419623597,0.83473,2395.7,2395.5,0.83475]
[1751419624295,0.83474,2395.6,2395.4,2.58018]
[1751419625399,0.83473,2395.7,2395.5,0.83477]
[1751419626401,0.83473,2395.7,2395.6,1.6754]
[1751419626800,3.78113,2396.2,2395.6,1.6754]
[1751419627002,0.8347,2395.7,2395.6,2.51014]
[1751419627300,0.8347,2395.7,2395.6,1.6754]
[1751419627501,0.83476,2395.6,2395.4,0.83478]
[1751419627798,0.83476,2395.6,2395.5,0.83477]
[1751419628305,0.83476,2395.6,2395.4,0.83478]
[1751419628503,0.83476,2395.6,2395.4,2.64918]
[1751419628712,1.7679,2396.1,2395.4,1.8144]
[1751419629010,0.8347,2395.8,2395.6,0.83472]
[1751419629203,0.8347,2395.8,2395.7,0.8347]
[1751419629703,0.83472,2395.7,2395.4,1.8144]
[1751419629906,0.83474,2395.6,2395.5,0.83476]
[1751419630406,2.08634,2396.2,2395.7,0.83467]
[1751419630407,0.83465,2395.9,2395.7,0.83467]
[1751419630603,2.08634,2396.2,2395.6,5.35860661]
[1751419630604,0.83454,2396.2,2395.6,5.35860661]
[1751419630810,2.08604,2396.6,2396.1,0.83455]
[1751419631001,2.08604,2396.6,2395.7,11.15614656]
[1751419631207,1.7929,2396.5,2396.0,0.83458]
[1751419631812,0.83456,2396.1,2395.9,0.83461]
[1751419632013,0.83456,2396.1,2395.9,2.56991]
[1751419632312,0.83463,2395.9,2395.8,1.8178]
[1751419632513,2.47260157,2398.5,2395.8,5.0]
[1751419632710,0.83406,2397.6,2397.2,5.35860661]
[1751419632909,0.83408,2397.5,2397.2,5.35860661]
[1751419633106,0.83406,2397.6,2397.2,5.35860661]
[1751419633410,3.4642,2397.9,2397.3,1.7353]
[1751419633618,3.4642,2397.9,2396.9,5.65445448]
[1751419633810,0.83409,2397.5,2397.1,0.83419]
[1751419634010,0.83409,2397.5,2397.2,0.83418]
[1751419634216,1.7344,2397.8,2397.2,0.83418]
[1751419634513,0.83409,2397.5,2397.0,0.83424]
[1751419634710,0.83412,2397.4,2397.1,1.8088]
[1751419634915,1.7136,2397.7,2397.1,5.4964923]
[1751419635105,1.7136,2397.7,2397.1,6.3306923]
[1751419635311,0.83418,2397.2,2397.0,1.8088]
[1751419635812,0.83416,2397.3,2397.0,2.64305]
[1751419636109,1.7344,2397.8,2397.2,6.19276661]
[1751419636311,0.83407,2397.6,2397.3,2.64294]
[1751419636511,0.8341,2397.5,2397.3,1.8088]
[1751419636715,1.7344,2397.8,2397.3,2.64294]
[1751419637111,0.83407,2397.6,2397.3,2.64294]
[1751419637514,1.7344,2397.8,2397.3,2.64294]
[1751419637515,1.7344,2397.8,2397.3,1.8088]
[1751419637716,0.83405,2397.6,2397.3,4.36753]
[1751419638317,0.83399,2397.8,2397.5,6.19265661]
[1751419638620,0.83352,2399.1,2398.8,0.83362]
[1751419638817,3.78638,2399.6,2398.7,0.83364]
[1751419639116,2.08363,2399.3,2398.2,5.35860661]
[1751419639320,0.83365,2398.8,2398.5,0.83372]
[1751419639610,3.357,2399.2,2398.3,7.10184892]
[1751419639816,0.83367,2398.7,2398.4,0.83375]
[1751419640015,0.83369,2398.6,2398.4,1.6456]
[1751419640319,0.83364,2398.8,2398.4,1.6456]
[1751419640714,0.83366,2398.7,2398.4,1.6456]
[1751419640906,3.357,2399.2,2398.5,10.6646736]
[1751419641111,0.83363,2398.8,2398.6,1.6456]
[1751419641312,0.83366,2398.7,2398.6,1.6456]
[1751419642019,0.8336,2398.9,2398.6,12.84190187]
[1751419642318,0.8336,2398.9,2398.8,5.35860661]
[1751419642820,0.8336,2398.9,2398.8,7.00640661]
[1751419643323,4.16305,2401.8,2398.8,17.34307571]
[1751419643513,0.29536426,2401.2,2400.8,5.35860661]
[1751419643714,0.83288,2401.0,2400.8,5.35860661]
[1751419643915,0.29536426,2401.2,2400.8,5.35860661]
[1751419644221,0.29536426,2401.2,2400.5,5.35860661]
[1751419644420,0.833,2400.6,2400.5,5.35860661]
[1751419644719,0.83293,2400.8,2400.5,10.75912091]
[1751419645014,0.833,2400.6,2400.5,7.00640661]
[1751419645217,0.29536426,2401.2,2400.2,5.35860661]
[1751419645417,0.83301,2400.6,2400.3,1.6478]
[1751419645823,0.83309,2400.4,2400.2,5.35860661]
[1751419646324,0.83308,2400.4,2400.2,5.35860661]
[1751419646825,1.7195,2401.0,2400.2,5.35860661]
[1751419646826,1.6488,2400.8,2400.3,5.36254141]
[1751419647022,0.83302,2400.6,2400.3,7.15024141]
[1751419647624,0.83301,2400.6,2400.3,7.15024141]
[1751419647819,1.6488,2400.8,2400.3,7.15024141]
[1751419647820,0.83303,2400.5,2400.3,7.15024141]
[1751419648019,0.29536426,2401.2,2400.3,7.15024141]
[1751419648322,0.29536426,2401.2,2400.2,5.35860661]
[1751419648323,0.8331,2400.3,2400.2,5.35860661]
[1751419648820,0.83317,2400.1,2400.0,40.8]
[1751419649125,0.83324,2399.9,2399.8,1.7006]
[1751419649319,0.83327,2399.8,2399.7,1.6559]
[1751419650720,0.83331,2399.7,2399.6,42.5947]
[1751419650918,0.83331,2399.7,2399.6,1.7947]
[1751419651121,0.83325,2399.9,2399.6,12.69237846]
[1751419651329,0.83325,2399.9,2399.6,54.32570846]
[1751419651522,0.83328,2399.8,2399.6,53.49237846]
[1751419652124,0.83326,2399.9,2399.6,53.49237846]
[1751419652326,0.83328,2399.8,2399.6,53.49237846]
[1751419652726,0.83329,2399.8,2399.6,53.49237846]
[1751419653223,2.08276,2400.3,2399.6,53.49237846]
[1751419653427,0.83329,2399.8,2399.6,53.49237846]
[1751419654125,2.08276,2400.3,2399.6,53.49237846]
[1751419654326,0.8333,2399.8,2399.6,53.49237846]
[1751419654522,0.83331,2399.7,2399.6,48.13377185]
[1751419654925,0.83341,2399.4,2399.3,5.35860661]
[1751419655326,0.83341,2399.4,2399.3,46.15860661]
[1751419656027,0.83341,2399.4,2399.3,5.35860661]
[1751419656825,0.83341,2399.4,2399.3,7.20600661]
[1751419657027,2.08319,2399.9,2399.3,7.20600661]
[1751419657222,0.83341,2399.4,2399.3,7.20600661]
[1751419658029,0.8334,2399.5,2399.3,8.03945661]
[1751419658330,0.83341,2399.4,2399.3,7.20600661]
[1751419660334,2.08319,2399.9,2399.1,1.7279]
[1751419660335,0.83348,2399.2,2399.1,1.7279]
[1751419660529,0.83352,2399.1,2399.0,5.35860661]
[1751419660831,0.83352,2399.1,2399.0,46.15860661]
[1751419661134,0.83352,2399.1,2399.0,5.35860661]
[1751419661932,0.83352,2399.1,2399.0,7.04150661]
[1751419662231,0.83355,2399.0,2398.9,42.5875]
[1751419662421,0.83355,2399.0,2398.9,40.8]
[1751419663029,0.83352,2399.2,2399.0,0.83354]
[1751419663220,0.83352,2399.2,2399.1,5.35860661]
[1751419663426,0.83344,2399.4,2399.2,0.83347]
[1751419663627,0.8334,2399.5,2399.3,2.51635]
[1751419663821,0.8334,2399.5,2399.4,5.35860661]
[1751419664024,0.8334,2399.5,2399.4,7.96841661]
[1751419664225,0.83332,2399.7,2399.4,17.66899511]
[1751419664533,0.83329,2399.8,2399.6,6.19193661]
[1751419664734,0.83329,2399.8,2399.7,1.7764]
[1751419664929,2.08285,2400.2,2399.7,5.48941006]
[1751419665129,2.08276,2400.4,2399.4,5.35860661]
[1751419665130,0.83338,2399.5,2399.4,5.35860661]
[1751419666330,2.0832,2399.8,2399.2,30.73547]
[1751419666530,3.7708,2399.8,2399.2,35.26060661]
[1751419666732,0.83341,2399.4,2399.3,7.22867166]
[1751419667133,0.8334,2399.5,2399.3,8.06211166]
[1751419667636,0.83341,2399.4,2399.3,7.22867166]
[1751419668831,0.83341,2399.4,2399.3,8.06212166]
[1751419669534,0.8334,2399.5,2399.3,7.22867166]
[1751419670129,0.83335,2399.6,2399.4,0.83339]
[1751419670436,0.83335,2399.6,2399.5,7.10200661]
[1751419670637,0.83335,2399.6,2399.5,1.7434]
[1751419671231,0.29536426,2401.2,2399.7,2.0832]
[1751419671536,0.833,2400.6,2400.5,5.35860661]
[1751419672237,3.4883,2400.9,2400.5,5.35860661]
[1751419672430,0.83293,2400.8,2400.6,0.83298]
[1751419672630,0.29536426,2401.2,2400.6,5.39644424]
[1751419672631,1.12817426,2401.2,2400.6,5.39644424]
[1751419672834,0.29536426,2401.2,2401.1,5.35860661]
[1751419673036,0.29536426,2401.2,2401.1,36.03442661]
[1751419673231,0.29536426,2401.2,2401.1,41.48879806]
[1751419674936,3.5494,2402.2,2401.1,46.48879806]
[1751419675140,1.8328,2402.9,2401.6,0.83263]
[1751419675331,1.8328,2402.9,2401.9,6.19114661]
[1751419675530,0.83235,2402.5,2402.1,0.83248]
[1751419675737,0.83238,2402.4,2402.1,1.8403]
[1751419676244,0.83232,2402.6,2402.1,1.8403]
[1751419676439,0.83229,2402.7,2402.2,0.83243]
[1751419676641,1.8328,2402.9,2402.2,10.83881145]
[1751419676841,0.83214,2403.1,2402.8,5.35860661]
[1751419677036,0.83217,2403.0,2402.8,5.35860661]
[1751419677337,0.83215,2403.1,2402.9,5.28667328]
[1751419677541,0.83215,2403.1,2402.8,0.83223]
[1751419677743,0.83215,2403.1,2402.7,6.19085661]
[1751419677942,0.83215,2403.1,2402.4,1.7513]
[1751419677943,0.83229,2402.7,2402.5,29.797]
[1751419678244,1.6749,2403.0,2402.5,35.14586968]
[1751419678440,0.8323,2402.7,2402.5,36.89716968]
[1751419678638,1.6749,2403.0,2402.5,36.89716968]
[1751419679038,0.8323,2402.6,2402.5,36.89716968]
[1751419679244,0.8323,2402.6,2402.5,7.10016968]
[1751419679446,2.08059,2402.8,2402.1,65.32760661]
[1751419679644,0.83244,2402.2,2402.1,65.32760661]
[1751419679838,0.83248,2402.1,2402.0,40.8]
[1751419680234,0.83246,2402.2,2402.0,40.8]
[1751419680445,0.83248,2402.1,2402.0,40.8]
[1751419681540,0.83255,2401.9,2401.7,32.2699]
[1751419681742,0.83255,2401.9,2401.7,31.4373]
[1751419681946,0.83253,2402.0,2401.8,5.52976353]
[1751419682143,0.83255,2401.9,2401.8,40.8]
[1751419683243,0.83263,2401.7,2401.5,29.748]
[1751419683442,3.7906,2402.2,2401.5,36.88310661]
[1751419683643,0.83261,2401.8,2401.6,5.39192301]
[1751419683850,1.7094,2402.2,2401.6,7.16842301]
[1751419684148,1.7094,2402.2,2401.6,6.22455301]
[1751419684449,1.7094,2402.2,2401.8,5.35860661]
[1751419684940,0.83257,2401.9,2401.8,5.35860661]
[1751419686341,0.83257,2401.9,2401.5,31.4355]
[1751419686342,2.08103,2402.3,2401.5,1.6985]
[1751419686547,0.83265,2401.6,2401.5,1.6985]
[1751419686749,0.83265,2401.6,2401.5,31.4135]
[1751419686953,0.83269,2401.5,2401.4,40.8]
[1751419687341,3.82251,2402.2,2401.5,0.83267]
[1751419687549,0.8326,2401.8,2401.7,5.35860661]
[1751419689447,0.83265,2401.6,2401.5,31.5225]
[1751419689952,1.7414,2402.2,2401.6,0.83263]
[1751419690153,3.8869,2402.4,2401.7,6.19120661]
[1751419690449,3.8869,2402.4,2401.7,11.70483046]
[1751419690656,0.83249,2402.1,2402.0,5.35860661]
[1751419690849,1.8425,2402.5,2402.1,0.83246]
[1751419691157,1.6914,2402.6,2402.0,6.19109661]
[1751419691158,0.83245,2402.2,2402.0,6.19109661]
[1751419691549,0.83243,2402.3,2402.0,6.19109661]
[1751419691750,0.83243,2402.3,2402.1,2.61228]
[1751419692051,2.08085,2402.5,2401.7,5.35860661]
[1751419692255,0.8326,2401.8,2401.6,47.2023]
[1751419692749,0.83262,2401.7,2401.6,3.6113]
[1751419692948,0.83262,2401.7,2401.5,1.8276]
[1751419692949,0.83265,2401.6,2401.5,1.8276]
[1751419693149,0.83265,2401.6,2401.5,31.4886]
[1751419693350,0.83265,2401.6,2401.5,32.32129]
[1751419693752,1.6773,2402.0,2401.5,31.4886]
[1751419693953,0.83265,2401.6,2401.5,1.7798]
[1751419694155,0.83265,2401.6,2401.5,31.4318]
[1751419694356,0.83264,2401.7,2401.5,1.7798]
[1751419694559,0.83264,2401.7,2401.6,0.83265]
[1751419694753,0.83258,2401.8,2401.5,1.7798]
[1751419695058,0.83258,2401.8,2401.7,5.35860661]
[1751419695353,2.08067,2402.8,2401.7,40.40426971]
[1751419695559,0.83249,2402.1,2402.0,5.35860661]
[1751419696562,0.83249,2402.1,2402.0,6.19111661]
[1751419696855,0.83249,2402.1,2402.0,5.35860661]
[1751419697058,0.83242,2402.3,2402.1,0.83246]
[1751419697261,0.83242,2402.3,2402.1,2.57666]
[1751419697761,0.83244,2402.2,2402.1,1.7442]
[1751419697959,3.85889,2402.7,2402.1,1.7442]
[1751419697960,0.83242,2402.3,2402.1,1.7442]
[1751419698162,0.83239,2402.4,2402.2,0.83244]
[1751419698462,1.7782,2402.7,2402.4,0.83236]
[1751419698655,0.83235,2402.5,2402.3,6.19099661]
[1751419698863,0.83235,2402.5,2402.4,1.7442]
[1751419699258,2.07972,2403.9,2402.6,2.0807]
[1751419699464,2.07962,2404.0,2403.3,5.35860661]
[1751419699765,0.83201,2403.5,2403.3,5.35860661]
[1751419700157,0.83204,2403.4,2403.1,0.83213]
[1751419700461,1.6849,2403.8,2403.1,2.59543]
[1751419700766,0.83206,2403.3,2403.2,5.42899068]
[1751419700962,0.83206,2403.3,2403.1,1.7633]
[1751419701354,0.8321,2403.2,2403.1,1.7633]
[1751419701967,0.83217,2403.0,2402.9,4.09266288]
[1751419702166,0.8322,2402.9,2402.8,44.89266288]
[1751419702469,0.8322,2402.9,2402.8,44.93491025]
[1751419703167,0.83223,2402.8,2402.7,1.7369]
[1751419703472,0.8323,2402.6,2402.5,9.28793344]
[1751419703664,2.0804,2403.1,2402.5,13.42405968]
[1751419703866,0.83227,2402.7,2402.6,4.13612624]
[1751419704065,1.7007,2403.2,2402.6,10.73222741]
[1751419704266,0.83218,2403.0,2402.8,0.83222]
[1751419704466,1.7007,2403.2,2402.8,1.8235]
[1751419704662,1.7227,2403.3,2402.9,5.35860661]
[1751419704872,0.83203,2403.4,2403.2,6.19068661]
[1751419705069,0.832,2403.5,2403.2,5.35860661]
[1751419705273,0.832,2403.5,2403.3,1.8235]
[1751419705575,0.83201,2403.5,2403.3,7.16612791]
[1751419705769,1.749,2403.9,2403.3,7.16612791]
[1751419706070,0.83202,2403.5,2403.3,7.16612791]
[1751419706467,0.83203,2403.4,2403.3,7.16612791]
[1751419706969,0.832,2403.5,2403.3,7.99817791]
[1751419707372,0.83201,2403.5,2403.3,7.16612791]
[1751419707565,0.83201,2403.5,2403.3,7.99817791]
[1751419707770,0.83203,2403.4,2403.3,7.16612791]
[1751419707968,0.83206,2403.3,2403.2,5.35860661]
[1751419708169,0.8321,2403.2,2403.1,1.8041]
[1751419708572,0.83208,2403.3,2403.1,4.37013]
[1751419708972,0.8321,2403.2,2403.1,3.538]
[1751419709174,0.83208,2403.3,2403.1,4.37013]
[1751419709876,0.8321,2403.2,2403.1,3.538]
[1751419710076,0.83208,2403.3,2403.1,4.37013]
[1751419710278,0.8321,2403.2,2403.1,3.538]
[1751419710475,0.8321,2403.2,2403.0,2.54424]
[1751419710676,3.81322,2403.7,2403.0,1.7121]
[1751419710677,0.83213,2403.1,2403.0,1.7121]
[1751419711375,1.7334,2403.7,2403.0,1.7121]
[1751419711579,1.7334,2403.7,2403.1,6.19071661]
[1751419711774,0.83205,2403.4,2403.2,0.83209]
[1751419711974,0.83206,2403.3,2403.1,7.94271661]
[1751419712174,0.8321,2403.2,2403.1,7.11060661]
[1751419712580,2.08003,2403.5,2402.8,4.13612624]
[1751419712775,1.7989,2403.4,2402.7,52.10163285]
[1751419713079,0.83212,2403.2,2403.0,6.19075661]
[1751419713280,0.83212,2403.2,2403.0,8.01755661]
[1751419713578,0.83212,2403.2,2403.1,5.38030351]
[1751419713778,0.83208,2403.3,2403.1,8.03923351]
[1751419714080,2.0799,2403.6,2403.0,0.83217]
[1751419714279,0.83213,2403.1,2403.0,0.83217]
[1751419714479,0.83213,2403.1,2403.0,2.65897]
[1751419714681,0.8321,2403.2,2403.0,2.65894]
[1751419714982,0.83209,2403.3,2403.1,0.83213]
[1751419715284,3.8788,2403.6,2403.1,2.65892]
[1751419715471,0.8321,2403.2,2403.1,1.8268]
[1751419716275,0.8321,2403.2,2403.1,2.65893]
[1751419716477,2.47260157,2405.2,2403.1,42.77548451]
[1751419716778,5.3975,2405.3,2404.6,0.83161]
[1751419716983,3.88165,2405.1,2404.3,5.35860661]
[1751419717278,0.83156,2404.8,2404.4,0.83168]
[1751419717487,0.83156,2404.8,2404.4,7.21842801]
[1751419717675,1.803,2405.1,2404.4,7.21842801]
[1751419717881,0.83156,2404.8,2404.4,7.21842801]